[Event "Titled Tuesday Blitz May 23 Early 2023"]
[White "Jia, Haoxiang"]
[Black "Barbot, Pierre"]
[WhiteFideId "8602999"]
[BlackFideId "663727"]
[WhiteElo "2681"]
[BlackElo "2431"]
[Result "1-0"]
[Round "05"]
[TimeControl "180+2"]
[Date "2023.05.23"]
[WhiteClock "0:01:08"]
[BlackClock "0:00:00"]

1. d4 {[%clk 0:02:59]}  Nf6 {[%clk 0:02:58]} 2. c4 {[%clk 0:02:47]}  g6 {[%clk 0:02:57]} 3. g3 {[%clk 0:02:24]}  Bg7 {[%clk 0:02:45]} 4. Bg2 {[%clk 0:02:24]}  d5 {[%clk 0:02:45]} 5. cxd5 {[%clk 0:02:18]}  Nxd5 {[%clk 0:02:46]} 6. e4 {[%clk 0:02:18]}  Nb6 {[%clk 0:02:45]} 7. Ne2 {[%clk 0:02:19]}  c5 {[%clk 0:02:38]} 8. Be3 {[%clk 0:02:16]}  Nc6 {[%clk 0:02:34]} 9. e5 {[%clk 0:02:09]}  cxd4 {[%clk 0:02:03]} 10. Bxc6+ {[%clk 0:02:07]}  bxc6 {[%clk 0:02:00]} 11. Bxd4 {[%clk 0:02:08]}  Qd5 {[%clk 0:01:19]} 12. O-O {[%clk 0:01:59]}  Bxe5 {[%clk 0:01:19]} 13. Nbc3 {[%clk 0:01:57]}  Qd6 {[%clk 0:01:07]} 14. Bxe5 {[%clk 0:01:52]}  Qxe5 {[%clk 0:01:08]} 15. Nd4 {[%clk 0:01:52]}  Bb7 {[%clk 0:00:50]} 16. Re1 {[%clk 0:01:52]}  Qc7 {[%clk 0:00:50]} 17. Qe2 {[%clk 0:01:24]}  Rd8 {[%clk 0:00:16]} 18. Rad1 {[%clk 0:01:19]}  Rd7 {[%clk 0:00:16]} 19. Ne4 {[%clk 0:01:13]}  O-O {[%clk 0:00:14]} 20. Nc5 {[%clk 0:01:12]}  Rd5 {[%clk 0:00:06]} 21. Qxe7 {[%clk 0:01:12]}  Qxe7 {[%clk 0:00:05]} 22. Rxe7 {[%clk 0:01:13]}  Bc8 {[%clk 0:00:00]} 23. b4 {[%clk 0:01:08]} 1-0


[Site "https://www.chess.com"]

[Event "Titled Tuesday Blitz May 23 Early 2023"]
[White "Domingo Nunez, Ruben"]
[Black "Andreev, Konstantin"]
[WhiteFideId "22245570"]
[BlackFideId "24239305"]
[WhiteElo "2404"]
[BlackElo "2106"]
[Result "1-0"]
[Round "05"]
[TimeControl "180+2"]
[Date "2023.05.23"]
[WhiteClock "0:00:55"]
[BlackClock "0:00:00"]

1. c4 {[%clk 0:02:39]}  Nf6 {[%clk 0:02:59]} 2. Nf3 {[%clk 0:02:38]}  Nc6 {[%clk 0:02:58]} 3. g3 {[%clk 0:02:37]}  e5 {[%clk 0:02:57]} 4. Nc3 {[%clk 0:02:36]}  d5 {[%clk 0:02:57]} 5. cxd5 {[%clk 0:02:36]}  Nxd5 {[%clk 0:02:58]} 6. Bg2 {[%clk 0:02:37]}  Bc5 {[%clk 0:02:57]} 7. O-O {[%clk 0:02:37]}  Nb6 {[%clk 0:02:55]} 8. a4 {[%clk 0:02:36]}  a5 {[%clk 0:02:51]} 9. d3 {[%clk 0:02:36]}  O-O {[%clk 0:02:49]} 10. Bg5 {[%clk 0:02:36]}  f6 {[%clk 0:02:48]} 11. Qb3+ {[%clk 0:02:36]}  Kh8 {[%clk 0:02:47]} 12. Be3 {[%clk 0:02:37]}  Bxe3 {[%clk 0:02:45]} 13. fxe3 {[%clk 0:02:37]}  Re8 {[%clk 0:02:44]} 14. Rac1 {[%clk 0:02:38]}  Be6 {[%clk 0:02:43]} 15. Qa3 {[%clk 0:02:37]}  Nb4 {[%clk 0:02:40]} 16. Nd2 {[%clk 0:02:37]}  c6 {[%clk 0:02:39]} 17. Nde4 {[%clk 0:02:35]}  Qe7 {[%clk 0:02:36]} 18. b3 {[%clk 0:02:31]}  N6d5 {[%clk 0:02:29]} 19. Nxd5 {[%clk 0:02:27]}  cxd5 {[%clk 0:02:16]} 20. Nc3 {[%clk 0:02:23]}  Rad8 {[%clk 0:02:08]} 21. Nb5 {[%clk 0:02:19]}  Rd7 {[%clk 0:01:54]} 22. Qb2 {[%clk 0:02:04]}  Qf7 {[%clk 0:01:48]} 23. Rc5 {[%clk 0:02:02]}  d4 {[%clk 0:01:39]} 24. Rxe5 {[%clk 0:01:48]}  fxe5 {[%clk 0:01:18]} 25. Rxf7 {[%clk 0:01:48]}  Bxf7 {[%clk 0:01:19]} 26. exd4 {[%clk 0:01:31]}  Rc8 {[%clk 0:01:12]} 27. Bf3 {[%clk 0:01:25]}  Rc2 {[%clk 0:01:09]} 28. Qa1 {[%clk 0:01:25]}  exd4 {[%clk 0:00:27]} 29. Nxd4 {[%clk 0:01:24]}  Rc5 {[%clk 0:00:25]} 30. Bg4 {[%clk 0:01:11]}  Rdc7 {[%clk 0:00:24]} 31. Kf2 {[%clk 0:01:06]}  Bd5 {[%clk 0:00:11]} 32. Nf5 {[%clk 0:01:01]}  Kg8 {[%clk 0:00:07]} 33. Qe5 {[%clk 0:00:59]}  Kf7 {[%clk 0:00:01]} 34. Nd6+ {[%clk 0:00:56]}  Kg6 {[%clk 0:00:00]} 35. Qf5+ {[%clk 0:00:55]} 1-0


[Site "https://www.chess.com"]

[Event "Titled Tuesday Blitz May 23 Early 2023"]
[White "Toropov, Pavel"]
[Black "Nagare Kaivalya Sandip"]
[WhiteFideId "24129178"]
[BlackFideId "25957929"]
[WhiteElo "2182"]
[BlackElo "2024"]
[Result "0-1"]
[Round "05"]
[TimeControl "180+2"]
[Date "2023.05.23"]
[WhiteClock "0:00:09"]
[BlackClock "0:00:30"]

1. e4 {[%clk 0:03:00]}  c5 {[%clk 0:02:59]} 2. Nf3 {[%clk 0:02:59]}  d6 {[%clk 0:03:00]} 3. Bb5+ {[%clk 0:02:57]}  Nd7 {[%clk 0:02:59]} 4. d4 {[%clk 0:02:56]}  cxd4 {[%clk 0:02:59]} 5. Qxd4 {[%clk 0:02:57]}  Nf6 {[%clk 0:02:58]} 6. Bxd7+ {[%clk 0:02:57]}  Bxd7 {[%clk 0:02:59]} 7. Nc3 {[%clk 0:02:58]}  e5 {[%clk 0:02:58]} 8. Qd3 {[%clk 0:02:57]}  h6 {[%clk 0:02:58]} 9. Nd2 {[%clk 0:02:50]}  Be7 {[%clk 0:02:56]} 10. Nc4 {[%clk 0:02:45]}  O-O {[%clk 0:02:47]} 11. Nxd6 {[%clk 0:02:42]}  Be6 {[%clk 0:02:47]} 12. Nf5 {[%clk 0:02:38]}  Bxf5 {[%clk 0:02:46]} 13. Qxd8 {[%clk 0:02:36]}  Rfxd8 {[%clk 0:02:45]} 14. exf5 {[%clk 0:02:37]}  Bb4 {[%clk 0:02:44]} 15. Bd2 {[%clk 0:02:37]}  Ng4 {[%clk 0:02:37]} 16. f3 {[%clk 0:02:30]}  Bxc3 {[%clk 0:02:23]} 17. bxc3 {[%clk 0:02:12]}  Nf6 {[%clk 0:02:23]} 18. Rb1 {[%clk 0:02:09]}  b6 {[%clk 0:02:22]} 19. Rb5 {[%clk 0:02:07]}  Rac8 {[%clk 0:02:15]} 20. Rxe5 {[%clk 0:02:02]}  Nd5 {[%clk 0:02:15]} 21. Re2 {[%clk 0:01:49]}  Nxc3 {[%clk 0:02:06]} 22. Bxc3 {[%clk 0:01:50]}  Rxc3 {[%clk 0:02:06]} 23. Kf2 {[%clk 0:01:50]}  Rdc8 {[%clk 0:02:04]} 24. Rc1 {[%clk 0:01:48]}  Ra3 {[%clk 0:02:04]} 25. c4 {[%clk 0:01:48]}  Rc5 {[%clk 0:02:03]} 26. g4 {[%clk 0:01:47]}  h5 {[%clk 0:02:00]} 27. h3 {[%clk 0:01:46]}  b5 {[%clk 0:01:53]} 28. Rec2 {[%clk 0:01:08]}  b4 {[%clk 0:01:47]} 29. Rd1 {[%clk 0:01:04]}  Rc3 {[%clk 0:01:46]} 30. Rdc1 {[%clk 0:00:57]}  R5xc4 {[%clk 0:01:32]} 31. Rxc3 {[%clk 0:00:55]}  bxc3 {[%clk 0:01:20]} 32. Ke3 {[%clk 0:00:54]}  Kh7 {[%clk 0:01:14]} 33. Kd3 {[%clk 0:00:53]}  Ra4 {[%clk 0:01:10]} 34. Rc2 {[%clk 0:00:51]}  Ra3 {[%clk 0:01:04]} 35. Kc4 {[%clk 0:00:49]}  Kh6 {[%clk 0:01:04]} 36. Kb4 {[%clk 0:00:47]}  Ra6 {[%clk 0:01:04]} 37. Rxc3 {[%clk 0:00:43]}  Rxa2 {[%clk 0:01:03]} 38. f4 {[%clk 0:00:38]}  Rf2 {[%clk 0:00:59]} 39. Rc4 {[%clk 0:00:32]}  Rf3 {[%clk 0:00:56]} 40. Kb5 {[%clk 0:00:23]}  Rxh3 {[%clk 0:00:54]} 41. g5+ {[%clk 0:00:24]}  Kh7 {[%clk 0:00:54]} 42. Rc7 {[%clk 0:00:25]}  Rf3 {[%clk 0:00:43]} 43. Rxf7 {[%clk 0:00:24]}  Rxf4 {[%clk 0:00:43]} 44. Ka6 {[%clk 0:00:23]}  Ra4+ {[%clk 0:00:38]} 45. Kb7 {[%clk 0:00:23]}  Rg4 {[%clk 0:00:34]} 46. g6+ {[%clk 0:00:20]}  Kh6 {[%clk 0:00:34]} 47. Kxa7 {[%clk 0:00:20]}  h4 {[%clk 0:00:34]} 48. Rf8 {[%clk 0:00:19]}  Rf4 {[%clk 0:00:31]} 49. Kb6 {[%clk 0:00:18]}  Kg5 {[%clk 0:00:31]} 50. Rh8 {[%clk 0:00:09]}  Rxf5 {[%clk 0:00:30]} 0-1


[Site "https://www.chess.com"]

[Event "Titled Tuesday Blitz May 23 Early 2023"]
[White "Hua, Lefong"]
[Black "Shukhman, Anna"]
[WhiteFideId "2602253"]
[BlackFideId "54180058"]
[WhiteElo "2637"]
[BlackElo "2235"]
[Result "0-1"]
[Round "05"]
[TimeControl "180+2"]
[Date "2023.05.23"]
[WhiteClock "0:00:05"]
[BlackClock "0:00:16"]

1. d4 {[%clk 0:03:00]}  Nf6 {[%clk 0:02:57]} 2. c4 {[%clk 0:03:00]}  g6 {[%clk 0:02:57]} 3. Nc3 {[%clk 0:03:01]}  d5 {[%clk 0:02:57]} 4. cxd5 {[%clk 0:03:02]}  Nxd5 {[%clk 0:02:58]} 5. e4 {[%clk 0:03:02]}  Nxc3 {[%clk 0:02:58]} 6. bxc3 {[%clk 0:03:03]}  Bg7 {[%clk 0:02:58]} 7. Nf3 {[%clk 0:03:03]}  c5 {[%clk 0:02:59]} 8. Rb1 {[%clk 0:03:02]}  O-O {[%clk 0:02:57]} 9. Be2 {[%clk 0:03:00]}  cxd4 {[%clk 0:02:57]} 10. cxd4 {[%clk 0:03:01]}  Qa5+ {[%clk 0:02:57]} 11. Bd2 {[%clk 0:03:01]}  Qxa2 {[%clk 0:02:58]} 12. O-O {[%clk 0:03:01]}  a5 {[%clk 0:02:57]} 13. Bg5 {[%clk 0:02:57]}  h6 {[%clk 0:02:56]} 14. Bxe7 {[%clk 0:02:55]}  Re8 {[%clk 0:02:56]} 15. Bc5 {[%clk 0:02:53]}  Rxe4 {[%clk 0:02:52]} 16. Bd3 {[%clk 0:02:48]}  Re8 {[%clk 0:02:50]} 17. Ne5 {[%clk 0:02:44]}  Be6 {[%clk 0:02:48]} 18. Bb5 {[%clk 0:02:33]}  Rd8 {[%clk 0:02:34]} 19. Re1 {[%clk 0:02:25]}  Na6 {[%clk 0:02:29]} 20. Be7 {[%clk 0:01:53]}  Rdc8 {[%clk 0:02:23]} 21. Ra1 {[%clk 0:01:38]}  Qd5 {[%clk 0:02:22]} 22. Bc4 {[%clk 0:01:37]}  Rxc4 {[%clk 0:02:20]} 23. Nxc4 {[%clk 0:01:37]}  Qxc4 {[%clk 0:02:20]} 24. Rxa5 {[%clk 0:01:36]}  Qxd4 {[%clk 0:02:17]} 25. Qb1 {[%clk 0:01:29]}  Qd7 {[%clk 0:02:06]} 26. Bb4 {[%clk 0:01:15]}  Rd8 {[%clk 0:02:03]} 27. h3 {[%clk 0:01:07]}  Bf5 {[%clk 0:02:01]} 28. Qb3 {[%clk 0:01:03]}  Be6 {[%clk 0:01:51]} 29. Qb1 {[%clk 0:01:02]}  Qc7 {[%clk 0:01:46]} 30. Rc1 {[%clk 0:00:50]}  Qb6 {[%clk 0:01:44]} 31. Be1 {[%clk 0:00:46]}  Qxb1 {[%clk 0:01:34]} 32. Rxb1 {[%clk 0:00:47]}  Rd7 {[%clk 0:01:29]} 33. Rab5 {[%clk 0:00:46]}  Bf5 {[%clk 0:01:15]} 34. Rxb7 {[%clk 0:00:37]}  Rxb7 {[%clk 0:01:06]} 35. Rxb7 {[%clk 0:00:36]}  Nc5 {[%clk 0:01:06]} 36. Ra7 {[%clk 0:00:33]}  Nd3 {[%clk 0:01:05]} 37. Bd2 {[%clk 0:00:20]}  Bd4 {[%clk 0:01:04]} 38. Ra8+ {[%clk 0:00:19]}  Kg7 {[%clk 0:01:02]} 39. Be3 {[%clk 0:00:20]}  Bxe3 {[%clk 0:01:02]} 40. fxe3 {[%clk 0:00:21]}  Kf6 {[%clk 0:01:01]} 41. Ra5 {[%clk 0:00:21]}  Ne5 {[%clk 0:01:00]} 42. Kf2 {[%clk 0:00:21]}  Nc4 {[%clk 0:01:00]} 43. Ra6+ {[%clk 0:00:21]}  Ke5 {[%clk 0:01:00]} 44. Ra7 {[%clk 0:00:22]}  Be6 {[%clk 0:00:59]} 45. Ra6 {[%clk 0:00:21]}  Ke4 {[%clk 0:00:58]} 46. Ra4 {[%clk 0:00:21]}  g5 {[%clk 0:00:58]} 47. Ra8 {[%clk 0:00:20]}  h5 {[%clk 0:00:58]} 48. Rg8 {[%clk 0:00:19]}  f6 {[%clk 0:00:57]} 49. Rh8 {[%clk 0:00:19]}  h4 {[%clk 0:00:57]} 50. Rf8 {[%clk 0:00:19]}  Ke5 {[%clk 0:00:57]} 51. Re8 {[%clk 0:00:19]}  Nd6 {[%clk 0:00:57]} 52. Ra8 {[%clk 0:00:19]}  Ne4+ {[%clk 0:00:57]} 53. Ke2 {[%clk 0:00:19]}  Bd5 {[%clk 0:00:57]} 54. Ra5 {[%clk 0:00:19]}  Nd6 {[%clk 0:00:56]} 55. Kf2 {[%clk 0:00:18]}  Ke6 {[%clk 0:00:56]} 56. Ra6 {[%clk 0:00:17]}  f5 {[%clk 0:00:56]} 57. Ra5 {[%clk 0:00:17]}  Ne4+ {[%clk 0:00:55]} 58. Ke2 {[%clk 0:00:17]}  Nc3+ {[%clk 0:00:55]} 59. Kf2 {[%clk 0:00:17]}  Nd1+ {[%clk 0:00:53]} 60. Ke2 {[%clk 0:00:17]}  Nb2 {[%clk 0:00:53]} 61. Kf2 {[%clk 0:00:15]}  Nc4 {[%clk 0:00:53]} 62. Ra6+ {[%clk 0:00:16]}  Ke5 {[%clk 0:00:53]} 63. Ra7 {[%clk 0:00:16]}  Nd6 {[%clk 0:00:44]} 64. Rg7 {[%clk 0:00:16]}  Ne4+ {[%clk 0:00:41]} 65. Ke2 {[%clk 0:00:15]}  Bc4+ {[%clk 0:00:41]} 66. Ke1 {[%clk 0:00:14]}  f4 {[%clk 0:00:35]} 67. exf4+ {[%clk 0:00:14]}  Kxf4 {[%clk 0:00:35]} 68. Re7 {[%clk 0:00:12]}  Bd3 {[%clk 0:00:33]} 69. Rd7 {[%clk 0:00:10]}  Bb5 {[%clk 0:00:33]} 70. Rb7 {[%clk 0:00:10]}  Bc6 {[%clk 0:00:32]} 71. Rc7 {[%clk 0:00:09]}  Bd5 {[%clk 0:00:32]} 72. Kf1 {[%clk 0:00:09]}  Kg3 {[%clk 0:00:30]} 73. Kg1 {[%clk 0:00:10]}  Be6 {[%clk 0:00:20]} 74. Re7 {[%clk 0:00:08]}  Bf5 {[%clk 0:00:21]} 75. Ra7 {[%clk 0:00:08]}  Nd6 {[%clk 0:00:19]} 76. Ra4 {[%clk 0:00:08]}  Be4 {[%clk 0:00:18]} 77. Rd4 {[%clk 0:00:07]}  Bxg2 {[%clk 0:00:14]} 78. Rxd6 {[%clk 0:00:07]}  Bxh3 {[%clk 0:00:13]} 79. Rd3+ {[%clk 0:00:07]}  Kg4 {[%clk 0:00:13]} 80. Kh2 {[%clk 0:00:06]}  Bf1 {[%clk 0:00:13]} 81. Rd4+ {[%clk 0:00:07]}  Kh5 {[%clk 0:00:14]} 82. Rd5 {[%clk 0:00:07]}  Be2 {[%clk 0:00:14]} 83. Re5 {[%clk 0:00:07]}  Bf3 {[%clk 0:00:14]} 84. Rf5 {[%clk 0:00:07]}  Be4 {[%clk 0:00:14]} 85. Re5 {[%clk 0:00:07]}  Bf3 {[%clk 0:00:14]} 86. Rf5 {[%clk 0:00:08]}  Kg4 {[%clk 0:00:14]} 87. Rc5 {[%clk 0:00:08]}  Kf4 {[%clk 0:00:15]} 88. Rc4+ {[%clk 0:00:07]}  Be4 {[%clk 0:00:15]} 89. Rc8 {[%clk 0:00:07]}  g4 {[%clk 0:00:15]} 90. Rf8+ {[%clk 0:00:07]}  Bf5 {[%clk 0:00:15]} 91. Rg8 {[%clk 0:00:07]}  g3+ {[%clk 0:00:15]} 92. Kg1 {[%clk 0:00:06]}  h3 {[%clk 0:00:15]} 93. Rg7 {[%clk 0:00:05]}  h2+ {[%clk 0:00:15]} 94. Kg2 {[%clk 0:00:04]}  Be4+ {[%clk 0:00:15]} 95. Kf1 {[%clk 0:00:04]}  h1=Q+ {[%clk 0:00:16]} 96. Ke2 {[%clk 0:00:05]}  Qf3+ {[%clk 0:00:15]} 97. Ke1 {[%clk 0:00:05]}  Qc3+ {[%clk 0:00:15]} 98. Kf1 {[%clk 0:00:05]}  Qxg7 {[%clk 0:00:16]} 99. Kg1 {[%clk 0:00:05]}  Qa1# {[%clk 0:00:16]} 0-1


[Site "https://www.chess.com"]

[Event "Titled Tuesday Blitz May 23 Early 2023"]
[White "Srdanovic, Jovana"]
[Black "Lopez Mulet, Inigo"]
[WhiteFideId "954810"]
[BlackFideId "22235620"]
[WhiteElo "2169"]
[BlackElo "2289"]
[Result "0-1"]
[Round "05"]
[TimeControl "180+2"]
[Date "2023.05.23"]
[WhiteClock "0:00:08"]
[BlackClock "0:01:39"]

1. d4 {[%clk 0:02:59]}  Nf6 {[%clk 0:02:59]} 2. c4 {[%clk 0:02:59]}  c5 {[%clk 0:02:59]} 3. d5 {[%clk 0:02:59]}  b5 {[%clk 0:03:00]} 4. cxb5 {[%clk 0:02:59]}  a6 {[%clk 0:03:00]} 5. bxa6 {[%clk 0:02:59]}  g6 {[%clk 0:03:00]} 6. Nc3 {[%clk 0:02:59]}  Bg7 {[%clk 0:03:01]} 7. e4 {[%clk 0:02:58]}  O-O {[%clk 0:03:01]} 8. g3 {[%clk 0:02:57]}  Bxa6 {[%clk 0:02:58]} 9. Nf3 {[%clk 0:02:57]}  Bxf1 {[%clk 0:02:57]} 10. Kxf1 {[%clk 0:02:57]}  Qa5 {[%clk 0:02:58]} 11. Kg2 {[%clk 0:02:56]}  e6 {[%clk 0:02:58]} 12. Re1 {[%clk 0:02:54]}  exd5 {[%clk 0:02:59]} 13. e5 {[%clk 0:02:41]}  Ng4 {[%clk 0:02:42]} 14. Nxd5 {[%clk 0:02:18]}  Nc6 {[%clk 0:02:41]} 15. Bd2 {[%clk 0:02:08]}  Qa7 {[%clk 0:02:38]} 16. Bc3 {[%clk 0:02:08]}  Rfe8 {[%clk 0:02:37]} 17. Nf6+ {[%clk 0:02:02]}  Nxf6 {[%clk 0:02:35]} 18. exf6 {[%clk 0:02:02]}  Bh6 {[%clk 0:02:34]} 19. Qd6 {[%clk 0:01:55]}  Bf8 {[%clk 0:02:31]} 20. Qd5 {[%clk 0:01:52]}  Qb7 {[%clk 0:02:17]} 21. Rxe8 {[%clk 0:01:32]}  Rxe8 {[%clk 0:02:18]} 22. Rd1 {[%clk 0:01:32]}  d6 {[%clk 0:02:12]} 23. h4 {[%clk 0:01:27]}  h6 {[%clk 0:02:12]} 24. h5 {[%clk 0:01:26]}  g5 {[%clk 0:02:07]} 25. a3 {[%clk 0:01:13]}  Nd8 {[%clk 0:02:06]} 26. Qxb7 {[%clk 0:01:04]}  Nxb7 {[%clk 0:02:07]} 27. Nh2 {[%clk 0:01:00]}  Re4 {[%clk 0:02:06]} 28. Kf3 {[%clk 0:00:58]}  Ra4 {[%clk 0:02:04]} 29. Ng4 {[%clk 0:00:56]}  Nd8 {[%clk 0:02:01]} 30. Ne3 {[%clk 0:00:55]}  Ne6 {[%clk 0:01:53]} 31. Nf5 {[%clk 0:00:55]}  Ra6 {[%clk 0:01:54]} 32. b4 {[%clk 0:00:50]}  Rxa3 {[%clk 0:01:45]} 33. b5 {[%clk 0:00:17]}  Rxc3+ {[%clk 0:01:45]} 34. Kg2 {[%clk 0:00:18]}  Rb3 {[%clk 0:01:45]} 35. Ne7+ {[%clk 0:00:16]}  Kh7 {[%clk 0:01:45]} 36. Rxd6 {[%clk 0:00:15]}  Rxb5 {[%clk 0:01:44]} 37. Rc6 {[%clk 0:00:15]}  Rb7 {[%clk 0:01:41]} 38. Nf5 {[%clk 0:00:14]}  Rc7 {[%clk 0:01:40]} 39. Ra6 {[%clk 0:00:09]}  c4 {[%clk 0:01:40]} 40. Ra2 {[%clk 0:00:09]}  c3 {[%clk 0:01:41]} 41. Rc2 {[%clk 0:00:10]}  Rc5 {[%clk 0:01:41]} 42. Ne3 {[%clk 0:00:10]}  Nd4 {[%clk 0:01:42]} 43. Rc1 {[%clk 0:00:09]}  Rc8 {[%clk 0:01:40]} 44. f4 {[%clk 0:00:09]}  Ba3 {[%clk 0:01:39]} 45. Rd1 {[%clk 0:00:09]}  c2 {[%clk 0:01:39]} 46. Nxc2 {[%clk 0:00:09]}  Rxc2+ {[%clk 0:01:39]} 47. Kh3 {[%clk 0:00:08]}  Ne6 {[%clk 0:01:39]} 0-1


[Site "https://www.chess.com"]

[Event "Titled Tuesday Blitz May 23 Early 2023"]
[White "Al-Tarboush, Ward"]
[Black "Bilan, Danila"]
[WhiteFideId "7601450"]
[BlackFideId "24161918"]
[WhiteElo "2265"]
[BlackElo "2182"]
[Result "1-0"]
[Round "05"]
[TimeControl "180+2"]
[Date "2023.05.23"]
[WhiteClock "0:01:05"]
[BlackClock "0:00:00"]

1. Nc3 {[%clk 0:03:00]}  d5 {[%clk 0:02:55]} 2. d4 {[%clk 0:03:00]}  Nf6 {[%clk 0:02:55]} 3. Bg5 {[%clk 0:03:00]}  Bf5 {[%clk 0:02:52]} 4. Nf3 {[%clk 0:03:00]}  e6 {[%clk 0:02:49]} 5. e3 {[%clk 0:02:59]}  Nbd7 {[%clk 0:02:47]} 6. Bd3 {[%clk 0:02:59]}  Bg6 {[%clk 0:02:44]} 7. Ne5 {[%clk 0:02:54]}  Be7 {[%clk 0:02:43]} 8. O-O {[%clk 0:02:53]}  Nxe5 {[%clk 0:02:37]} 9. dxe5 {[%clk 0:02:53]}  Nd7 {[%clk 0:02:34]} 10. Bxe7 {[%clk 0:02:53]}  Qxe7 {[%clk 0:02:35]} 11. f4 {[%clk 0:02:53]}  c6 {[%clk 0:01:56]} 12. Qf3 {[%clk 0:02:49]}  O-O {[%clk 0:01:27]} 13. Rad1 {[%clk 0:02:49]}  Rad8 {[%clk 0:01:18]} 14. Bxg6 {[%clk 0:02:46]}  hxg6 {[%clk 0:01:14]} 15. Qg4 {[%clk 0:02:46]}  Nc5 {[%clk 0:01:04]} 16. Rf3 {[%clk 0:02:45]}  Ne4 {[%clk 0:00:59]} 17. Rh3 {[%clk 0:02:43]}  Nxc3 {[%clk 0:00:45]} 18. bxc3 {[%clk 0:02:44]}  c5 {[%clk 0:00:40]} 19. Qe2 {[%clk 0:02:23]}  f5 {[%clk 0:00:30]} 20. exf6 {[%clk 0:02:12]}  Rxf6 {[%clk 0:00:30]} 21. Rg3 {[%clk 0:02:09]}  e5 {[%clk 0:00:26]} 22. fxe5 {[%clk 0:02:01]}  Qxe5 {[%clk 0:00:27]} 23. c4 {[%clk 0:02:00]}  d4 {[%clk 0:00:24]} 24. Qg4 {[%clk 0:01:59]}  Rdf8 {[%clk 0:00:20]} 25. exd4 {[%clk 0:01:41]}  cxd4 {[%clk 0:00:20]} 26. h3 {[%clk 0:01:41]}  Rd8 {[%clk 0:00:09]} 27. c3 {[%clk 0:01:34]}  d3 {[%clk 0:00:05]} 28. Rgxd3 {[%clk 0:01:24]}  Rxd3 {[%clk 0:00:06]} 29. Rxd3 {[%clk 0:01:25]}  Qc5+ {[%clk 0:00:03]} 30. Qd4 {[%clk 0:01:24]}  Qf5 {[%clk 0:00:03]} 31. Kh2 {[%clk 0:01:21]}  g5 {[%clk 0:00:03]} 32. Rf3 {[%clk 0:01:18]}  Qg6 {[%clk 0:00:02]} 33. Rxf6 {[%clk 0:01:14]}  Qxf6 {[%clk 0:00:02]} 34. Qxf6 {[%clk 0:01:14]}  gxf6 {[%clk 0:00:03]} 35. Kg3 {[%clk 0:01:12]}  Kf7 {[%clk 0:00:03]} 36. Kf3 {[%clk 0:01:11]}  Ke6 {[%clk 0:00:04]} 37. g3 {[%clk 0:01:10]}  Kf5 {[%clk 0:00:03]} 38. h4 {[%clk 0:01:10]}  Kg6 {[%clk 0:00:04]} 39. c5 {[%clk 0:01:06]}  Kf5 {[%clk 0:00:03]} 40. g4+ {[%clk 0:01:04]}  Kg6 {[%clk 0:00:02]} 41. h5+ {[%clk 0:01:05]}  Kh6 {[%clk 0:00:00]} 42. Ke4 {[%clk 0:01:05]} 1-0


[Site "https://www.chess.com"]

[Event "Titled Tuesday Blitz May 23 Early 2023"]
[White "Mouhamad, Joachim"]
[Black "Ismagilov, Damir"]
[WhiteFideId "656410"]
[BlackFideId "34199982"]
[WhiteElo "2125"]
[BlackElo "2143"]
[Result "1-0"]
[Round "05"]
[TimeControl "180+2"]
[Date "2023.05.23"]
[WhiteClock "0:00:26"]
[BlackClock "0:00:09"]

1. e4 {[%clk 0:03:00]}  g6 {[%clk 0:02:58]} 2. d4 {[%clk 0:02:59]}  Bg7 {[%clk 0:02:59]} 3. Nc3 {[%clk 0:02:58]}  d6 {[%clk 0:02:58]} 4. Nf3 {[%clk 0:02:57]}  Bg4 {[%clk 0:02:55]} 5. Be2 {[%clk 0:02:52]}  Nc6 {[%clk 0:02:45]} 6. Be3 {[%clk 0:02:49]}  e5 {[%clk 0:02:21]} 7. d5 {[%clk 0:02:46]}  Nce7 {[%clk 0:02:21]} 8. O-O {[%clk 0:02:29]}  f5 {[%clk 0:02:12]} 9. Ng5 {[%clk 0:02:23]}  Bxe2 {[%clk 0:01:55]} 10. Qxe2 {[%clk 0:02:21]}  Qd7 {[%clk 0:01:42]} 11. Ne6 {[%clk 0:02:20]}  Nc8 {[%clk 0:01:32]} 12. Nb5 {[%clk 0:02:16]}  Kf7 {[%clk 0:01:22]} 13. exf5 {[%clk 0:02:12]}  c6 {[%clk 0:01:16]} 14. Nbc7 {[%clk 0:02:11]}  Rb8 {[%clk 0:01:14]} 15. f4 {[%clk 0:02:02]}  e4 {[%clk 0:01:07]} 16. fxg6+ {[%clk 0:01:57]}  hxg6 {[%clk 0:01:08]} 17. f5 {[%clk 0:01:58]}  gxf5 {[%clk 0:00:59]} 18. Rxf5+ {[%clk 0:01:57]}  Nf6 {[%clk 0:00:58]} 19. Raf1 {[%clk 0:01:57]}  Ne7 {[%clk 0:00:56]} 20. Rg5 {[%clk 0:01:40]}  Rbg8 {[%clk 0:00:41]} 21. c4 {[%clk 0:01:35]}  cxd5 {[%clk 0:00:33]} 22. cxd5 {[%clk 0:01:33]}  Nxd5 {[%clk 0:00:34]} 23. Rxd5 {[%clk 0:01:24]}  Ke7 {[%clk 0:00:22]} 24. Rg5 {[%clk 0:01:19]}  Bh6 {[%clk 0:00:20]} 25. Rxg8 {[%clk 0:01:18]}  Nxg8 {[%clk 0:00:21]} 26. Bxh6 {[%clk 0:01:13]}  Rxh6 {[%clk 0:00:22]} 27. Qxe4 {[%clk 0:01:03]}  Rxe6 {[%clk 0:00:19]} 28. Qxe6+ {[%clk 0:00:34]}  Qxe6 {[%clk 0:00:19]} 29. Nxe6 {[%clk 0:00:35]}  Kxe6 {[%clk 0:00:20]} 30. Rf8 {[%clk 0:00:32]}  Nh6 {[%clk 0:00:19]} 31. h3 {[%clk 0:00:30]}  Nf5 {[%clk 0:00:19]} 32. Rxf5 {[%clk 0:00:27]}  Kxf5 {[%clk 0:00:20]} 33. g4+ {[%clk 0:00:25]}  Kf4 {[%clk 0:00:10]} 34. Kf2 {[%clk 0:00:25]}  d5 {[%clk 0:00:11]} 35. Ke2 {[%clk 0:00:26]}  b6 {[%clk 0:00:08]} 36. Kd3 {[%clk 0:00:26]}  Ke5 {[%clk 0:00:09]} 37. h4 {[%clk 0:00:26]}  Kf4 {[%clk 0:00:07]} 38. h5 {[%clk 0:00:26]}  Kxg4 {[%clk 0:00:07]} 39. h6 {[%clk 0:00:26]}  Kf4 {[%clk 0:00:08]} 40. h7 {[%clk 0:00:27]}  Kf5 {[%clk 0:00:09]} 41. h8=Q {[%clk 0:00:26]}  Ke6 {[%clk 0:00:09]} 1-0


[Site "https://www.chess.com"]